bitfinex-derivatives/quotes_BTCF0:USTF0_20241116
["timestamp","ask_amount","ask_price","bid_price","bid_amount"]
[1731715423499,0.00013483,90993.0,90992.0,0.38196447]
[1731715423803,0.00013483,90993.0,90992.0,0.11926232]
[1731715427197,0.12978179,91018.0,90992.0,0.11926232]
[1731715427198,0.1254033,91018.0,90993.0,0.1098]
[1731715427407,0.29036746,91100.0,91079.0,0.3608]
[1731715427591,0.35819979,91156.0,91008.0,0.51043101]
[1731715427592,0.0985,91155.0,91099.0,0.3608]
[1731715427793,0.0985,91155.0,91141.0,0.32817495]
[1731715427794,0.1106,91154.0,91141.0,0.32817495]
[1731715427990,0.1106,91154.0,91147.0,0.3608]
[1731715428203,0.32956056,91148.0,91147.0,0.3598]
[1731715428397,0.32956056,91148.0,91147.0,1.68976148]
[1731715428604,0.01007462,91148.0,91147.0,2.19132242]
[1731715428903,8.68e-05,91153.0,91147.0,3.01956624]
[1731715429210,8.68e-05,91153.0,91152.0,0.94879326]
[1731715429392,0.07865985,91155.0,91152.0,4.01213553]
[1731715429592,0.07865985,91155.0,91154.0,0.72283963]
[1731715429797,0.18917985,91155.0,91154.0,2.65976624]
[1731715430194,0.18917985,91155.0,91154.0,3.65131829]
[1731715430398,0.05877093,91155.0,91154.0,3.65131829]
[1731715430909,0.38789093,91155.0,91154.0,2.65976624]
[1731715431117,0.68789093,91155.0,91154.0,2.65976624]
[1731715431301,0.38789093,91155.0,91154.0,2.65976624]
[1731715431699,0.38789093,91155.0,91154.0,0.50156094]
[1731715431894,0.38789093,91155.0,91154.0,0.34896094]
[1731715432306,0.38789093,91155.0,91154.0,0.95925499]
[1731715432607,0.68789093,91155.0,91154.0,0.95925499]
[1731715433106,0.68789093,91155.0,91154.0,0.34896094]
[1731715433301,0.38789093,91155.0,91154.0,0.90834824]
[1731715434597,0.63376211,91155.0,91154.0,0.29806094]
[1731715434801,0.22328211,91155.0,91154.0,0.29806094]
[1731715435003,0.63376211,91155.0,91154.0,0.29806094]
[1731715435710,0.63384777,91155.0,91154.0,0.29806094]
[1731715435910,0.33384777,91155.0,91154.0,0.6852121]
[1731715436205,0.63384777,91155.0,91154.0,0.29806094]
[1731715436603,0.52336777,91155.0,91154.0,0.29806094]
[1731715436802,0.33384777,91155.0,91154.0,0.29806094]
[1731715438404,0.33384777,91155.0,91147.0,0.3598]
[1731715438621,0.11056566,91155.0,91147.0,0.3598]
[1731715439606,8.566e-05,91155.0,91147.0,0.3598]
[1731715439909,8.566e-05,91155.0,91154.0,0.46663789]
[1731715440108,0.11052566,91155.0,91154.0,0.46663789]
[1731715441715,0.36906559,91189.0,91181.0,0.19304649]
[1731715442018,0.4794,91188.0,91184.0,0.19304649]
[1731715442218,0.329,91187.0,91185.0,0.19304649]
[1731715442419,0.329,91187.0,91182.0,0.19304649]
[1731715442717,0.3608,91187.0,91179.0,0.19295686]
[1731715442909,0.53248685,91180.0,91146.0,0.3608]
[1731715443216,0.17168685,91148.0,91146.0,0.3608]
[1731715443415,0.11044,91147.0,91146.0,0.2591]
[1731715443622,0.80047362,91147.0,91131.0,0.3608]
[1731715443813,0.17168685,91136.0,91131.0,0.3608]
[1731715445012,0.47168685,91136.0,91131.0,0.3099]
[1731715445216,0.3292,91135.0,91131.0,0.255]
[1731715445616,0.3292,91134.0,91131.0,0.255]
[1731715446021,0.3292,91133.0,91131.0,0.255]
[1731715446532,0.3292,91132.0,91131.0,0.255]
[1731715446925,0.6292,91132.0,91131.0,0.255]
[1731715447227,0.3292,91132.0,91131.0,0.255]
[1731715447431,0.6292,91132.0,91131.0,0.255]
[1731715447619,0.17168685,91136.0,91131.0,0.255]
[1731715447820,0.11044,91135.0,91131.0,0.255]
[1731715448021,0.34304458,91138.0,91131.0,0.255]
[1731715448022,0.11044,91134.0,91131.0,0.255]
[1731715448218,0.11044,91133.0,91131.0,0.255]
[1731715448623,0.34304458,91138.0,91131.0,0.255]
[1731715448832,0.11044,91137.0,91131.0,0.255]
[1731715449426,0.11044,91136.0,91131.0,0.255]
[1731715451224,0.34304458,91138.0,91131.0,0.255]
[1731715451427,0.11044,91137.0,91131.0,0.255]
[1731715452127,0.34304458,91138.0,91131.0,0.255]
[1731715452434,0.11044,91136.0,91131.0,0.255]
[1731715454039,0.11044,91135.0,91131.0,0.255]
[1731715455532,0.34304458,91138.0,91133.0,0.32196226]
[1731715455728,0.00011362,91147.0,91138.0,0.3362432]
[1731715455932,0.00011362,91147.0,91146.0,0.3608]
[1731715456135,0.00011362,91147.0,91146.0,0.47744153]
[1731715456332,0.00011362,91147.0,91146.0,1.0482949]
[1731715456835,0.11055362,91147.0,91146.0,1.0482949]
[1731715457425,0.11055362,91147.0,91146.0,1.71257798]
[1731715457927,0.10584,91147.0,91146.0,1.71257798]
[1731715458229,0.10584,91147.0,91146.0,2.07337798]
[1731715458630,0.05414,91147.0,91146.0,2.07337798]
[1731715458831,0.00010482,91147.0,91146.0,1.7453381]
[1731715459033,0.10594482,91147.0,91146.0,2.84034029]
[1731715459243,0.10594482,91147.0,91146.0,2.38158236]
[1731715459841,0.17163003,91188.0,91146.0,2.38158236]
[1731715459842,0.17163003,91177.0,91146.0,2.38158236]
[1731715460030,0.10584,91173.0,91167.0,0.3608]
[1731715460231,0.17163003,91177.0,91168.0,1.00800857]
[1731715460438,0.10584,91174.0,91169.0,1.00800857]
[1731715460632,0.10584,91174.0,91170.0,1.00800857]
[1731715460937,0.00013979,91173.0,91171.0,1.00800857]
[1731715461249,0.00013979,91173.0,91167.0,0.3608]
[1731715461250,0.00013979,91173.0,91172.0,0.45986596]
[1731715461936,0.00013979,91173.0,91172.0,1.00738909]
[1731715462842,0.00013979,91173.0,91172.0,0.45986596]
[1731715464548,0.10597979,91173.0,91172.0,0.44445107]
[1731715464936,0.00013979,91173.0,91172.0,0.44445107]
[1731715465129,0.10597979,91173.0,91172.0,0.97441247]
[1731715465834,0.10597979,91173.0,91172.0,0.44445107]
[1731715467236,0.10597979,91173.0,91172.0,0.97237923]
[1731715467440,0.10597979,91173.0,91172.0,0.44445107]
[1731715467638,0.27742384,91175.0,91172.0,0.44445107]
[1731715467843,0.10584,91173.0,91168.0,0.42571713]
[1731715468040,0.10584,91173.0,91169.0,0.82627018]
[1731715468247,0.10584,91173.0,91170.0,0.43365305]
[1731715468436,0.10584,91173.0,91171.0,0.43365305]
[1731715468632,0.10584,91173.0,91172.0,0.43365305]
[1731715469043,0.10593729,91173.0,91172.0,0.43365305]
[1731715469241,0.10593729,91173.0,91172.0,0.43357421]
[1731715469438,9.729e-05,91173.0,91172.0,0.43357421]
[1731715469638,0.10589729,91173.0,91172.0,0.43357421]
[1731715470241,0.10589729,91173.0,91172.0,0.43086408]
[1731715470439,0.10589729,91173.0,91169.0,0.32707766]
[1731715470641,0.10589729,91173.0,91171.0,0.32707766]
[1731715471139,0.10589729,91173.0,91172.0,0.32707766]
[1731715471337,0.10589729,91173.0,91172.0,0.7576482]
[1731715471845,0.10589729,91173.0,91172.0,0.43057054]
[1731715472442,0.10589729,91173.0,91167.0,0.3608]
[1731715473953,0.10589729,91173.0,91168.0,0.43091913]
[1731715474154,0.10589729,91173.0,91169.0,0.32715274]
[1731715474455,0.10589729,91173.0,91169.0,0.66339594]
[1731715474754,0.1058,91172.0,91169.0,0.3362432]
[1731715475055,0.1058,91172.0,91170.0,0.3362432]
[1731715476548,0.1058,91172.0,91171.0,0.3362432]
[1731715479140,0.1058,91172.0,91171.0,0.76802626]
[1731715480055,9.729e-05,91173.0,91171.0,0.76802626]
[1731715480250,9.729e-05,91173.0,91172.0,0.3362432]
[1731715480451,0.10589729,91173.0,91171.0,0.43318306]
[1731715480651,0.3608,91172.0,91164.0,0.39258328]
[1731715480949,0.11441325,91165.0,91149.0,0.3608]
[1731715481153,0.11441325,91156.0,91155.0,0.3362432]
[1731715481355,0.22021325,91156.0,91149.0,0.3608]
[1731715481548,0.22021325,91156.0,91153.0,0.3362432]
[1731715483451,0.1058,91156.0,91153.0,0.3362432]
[1731715483754,0.22021325,91156.0,91152.0,0.3608]
[1731715483950,0.22021325,91156.0,91155.0,0.3362432]
[1731715484145,9.729e-05,91173.0,91155.0,0.3608]
[1731715484347,0.3608,91231.0,91183.0,0.11441325]
[1731715484348,0.04424191,91198.0,91183.0,0.11441325]
[1731715484653,0.04424191,91198.0,91192.0,0.3608]
[1731715484959,0.10148671,91193.0,91192.0,0.3608]
[1731715485251,0.00174037,91193.0,91192.0,0.3608]
[1731715485662,0.09993366,91193.0,91192.0,0.3608]
[1731715486358,9.366e-05,91193.0,91192.0,0.3608]
[1731715486560,0.09993366,91193.0,91192.0,0.3608]
[1731715488258,9.366e-05,91193.0,91192.0,0.3608]
[1731715488461,0.09993366,91193.0,91192.0,0.3608]
[1731715488960,9.366e-05,91193.0,91192.0,0.3608]
[1731715489158,0.09993366,91193.0,91192.0,0.3608]
[1731715491846,0.04346442,91207.0,91192.0,0.3608]
[1731715491847,0.09984,91199.0,91192.0,0.3608]
[1731715492051,0.09984,91199.0,91198.0,0.3608]
[1731715493161,0.0999688,91199.0,91198.0,0.3608]
[1731715493361,0.0001288,91199.0,91198.0,0.3608]
[1731715493659,0.0999688,91199.0,91198.0,0.3608]
[1731715495363,0.0001288,91199.0,91198.0,0.3608]
[1731715495657,0.0999688,91199.0,91198.0,0.3608]
[1731715495856,0.0001288,91199.0,91198.0,0.3608]
[1731715496062,0.0999688,91199.0,91198.0,0.3608]
[1731715496250,0.0001288,91199.0,91198.0,0.3608]
[1731715496455,0.09984,91205.0,91198.0,0.3608]
[1731715496860,0.09984,91205.0,91199.0,0.32775285]
[1731715497055,0.09984,91205.0,91199.0,0.41720161]
[1731715497451,0.17147486,91240.0,91199.0,0.41720161]
[1731715497655,0.1001295,91200.0,91199.0,1.07307328]
[1731715497851,0.1001295,91200.0,91199.0,0.65587167]
[1731715498455,0.1001295,91200.0,91199.0,0.37336711]
[1731715498659,0.1001295,91200.0,91199.0,0.79039156]
[1731715499161,0.0482295,91200.0,91199.0,0.79039156]
[1731715499358,0.0998,91215.0,91199.0,0.79039156]
[1731715499661,0.0318,91233.0,91214.0,0.7216]
[1731715499960,0.0998,91224.0,91214.0,0.3608]
[1731715500261,7.946e-05,91223.0,91214.0,0.3608]
[1731715500666,0.09887946,91224.0,91214.0,0.3608]
[1731715500858,0.39887946,91224.0,91214.0,0.3089]
[1731715501060,0.32888,91223.0,91214.0,0.3089]
[1731715501462,0.36188,91222.0,91214.0,0.3089]
[1731715501666,0.033,91222.0,91214.0,0.3089]
[1731715503259,0.00793434,91221.0,91214.0,0.3089]
[1731715503463,0.00793434,91220.0,91214.0,0.3089]
[1731715503662,0.00793434,91219.0,91214.0,0.3089]
[1731715503857,0.00793434,91218.0,91214.0,0.3089]
[1731715504064,0.00793434,91217.0,91214.0,0.3089]
[1731715504264,0.033,91222.0,91214.0,0.3089]
[1731715504660,0.0998,91221.0,91214.0,0.3089]
[1731715505163,0.41234284,91225.0,91214.0,0.3089]
[1731715505362,0.41234284,91225.0,91224.0,0.3608]
[1731715505562,0.51214284,91225.0,91224.0,0.3608]
[1731715507257,0.52008221,91225.0,91224.0,0.3608]
[1731715508367,0.42028221,91225.0,91224.0,0.3608]
[1731715508568,0.52008221,91225.0,91224.0,0.3608]
[1731715509274,0.51214284,91225.0,91224.0,0.3608]
[1731715509763,0.4686,91225.0,91224.0,0.3608]
[1731715511373,0.0998,91225.0,91224.0,0.3608]
[1731715513469,0.0998,91225.0,91224.0,0.7216]
[1731715514170,0.10777417,91225.0,91224.0,0.7216]
[1731715514373,0.10777417,91225.0,91224.0,1.04835596]
[1731715514573,0.10777417,91225.0,91224.0,0.7216]
[1731715514876,0.0998,91225.0,91224.0,0.7216]
[1731715515075,0.10777267,91225.0,91224.0,0.7216]
[1731715515277,0.0998,91225.0,91224.0,0.7216]
[1731715515865,0.10777391,91225.0,91224.0,0.7216]
[1731715516678,0.0998,91225.0,91224.0,0.7216]
[1731715517185,0.09588,91225.0,91224.0,0.7216]
[1731715518268,0.10394688,91225.0,91224.0,0.7216]
[1731715518577,0.10394649,91225.0,91224.0,0.7216]
[1731715519175,0.00806649,91225.0,91224.0,0.7216]
[1731715519366,0.09588,91225.0,91224.0,0.7216]
[1731715520172,0.10394311,91225.0,91224.0,0.7216]
[1731715520472,0.09588,91225.0,91224.0,0.7216]
[1731715520876,0.10394381,91225.0,91224.0,0.7216]
[1731715521378,0.00805938,91225.0,91224.0,0.7216]
[1731715524068,0.09588,91227.0,91224.0,0.7216]
[1731715524274,0.00808129,91225.0,91224.0,0.7216]
[1731715524471,0.00808129,91226.0,91224.0,1.04835596]
[1731715524674,0.00808129,91225.0,91224.0,0.7216]
[1731715524973,0.00808129,91225.0,91224.0,1.12940854]
[1731715525277,0.09588,91230.0,91224.0,1.12940854]
[1731715525483,0.0080899,91229.0,91226.0,0.32796501]
[1731715525775,0.0080899,91228.0,91225.0,0.32936501]
[1731715525972,0.0080899,91227.0,91225.0,0.32796501]
[1731715526173,0.09588,91230.0,91225.0,0.32796501]
[1731715526174,0.00808991,91226.0,91225.0,0.32796501]
[1731715526470,0.00808991,91226.0,91225.0,0.40629876]
[1731715526673,0.00808991,91226.0,91225.0,0.73432616]
[1731715527174,0.00808991,91226.0,91225.0,0.40629876]
[1731715527375,0.00808991,91226.0,91225.0,0.73432616]
[1731715527774,0.04278954,91234.0,91225.0,0.73432616]
[1731715527970,0.09588,91236.0,91233.0,0.3608]
[1731715528276,0.00809205,91235.0,91233.0,0.3608]
[1731715528475,0.00810318,91234.0,91233.0,0.3608]
[1731715530677,0.00810318,91234.0,91233.0,0.39654568]
[1731715532979,0.00810318,91234.0,91233.0,0.3608]
[1731715533389,0.10398318,91234.0,91230.0,0.26246766]
[1731715533587,0.10398318,91234.0,91213.0,0.3608]
[1731715533588,0.3608,91231.0,91202.0,0.30919677]
[1731715533778,0.11425057,91203.0,91199.0,0.39215954]
[1731715534086,0.11425057,91203.0,91197.0,0.00012834]
[1731715534087,0.10398318,91202.0,91197.0,0.00012834]
[1731715534388,0.10398318,91202.0,91187.0,0.00296]
[1731715534389,0.13074937,91198.0,91187.0,0.00296]
[1731715534577,0.11425057,91195.0,91173.0,0.3608]
[1731715534778,0.11425057,91183.0,91173.0,0.3608]
[1731715535088,0.34885076,91183.0,91173.0,0.3608]
[1731715535275,1.32228432,91183.0,91146.0,0.3608]
[1731715535482,0.11425057,91159.0,91146.0,0.3608]
[1731715535688,0.10398318,91158.0,91146.0,0.3608]
[1731715535885,0.00810318,91157.0,91146.0,0.3608]
[1731715536186,0.09588,91158.0,91146.0,0.39611004]
[1731715536889,0.09588,91158.0,91154.0,0.3608]
[1731715539383,0.11425057,91167.0,91154.0,0.3608]
[1731715539384,0.0346011,91166.0,91154.0,0.3608]
[1731715539577,0.09592,91165.0,91154.0,0.3608]
[1731715540184,0.3608,91173.0,91154.0,0.3608]
[1731715540185,0.09592,91164.0,91162.0,0.3608]
[1731715540390,0.09592,91163.0,91162.0,0.3608]
[1731715543692,0.09592,91182.0,91162.0,0.68988]
[1731715543903,0.09592,91181.0,91178.0,0.3608]
[1731715544192,0.09476,91180.0,91162.0,0.3608]
[1731715544395,0.11425057,91170.0,91157.0,0.3608]
[1731715547596,0.11425057,91162.0,91157.0,0.3608]
[1731715547794,0.09476,91161.0,91157.0,0.3608]
[1731715550802,0.4908611,91161.0,91144.0,0.0664]
[1731715550996,0.4908611,91161.0,91144.0,0.0715]
[1731715551199,0.8199411,91161.0,91144.0,0.0715]
[1731715553403,0.4909011,91161.0,91144.0,0.0715]
[1731715553796,0.3961011,91161.0,91144.0,0.0715]
[1731715553998,0.1301011,91161.0,91151.0,0.3608]
[1731715554703,0.09488408,91161.0,91159.0,0.3608]
[1731715555109,8.408e-05,91161.0,91159.0,0.3608]
[1731715555495,0.09488408,91161.0,91159.0,0.3608]
[1731715555697,8.408e-05,91161.0,91159.0,0.3608]
[1731715556004,0.09488408,91161.0,91159.0,0.3608]
[1731715556204,0.36876,91169.0,91159.0,0.3608]
[1731715556409,0.0948,91168.0,91159.0,0.3608]
[1731715557205,0.3608,91181.0,91159.0,0.3608]
[1731715557206,4.426e-05,91167.0,91159.0,0.3608]
[1731715557398,4.426e-05,91167.0,91163.0,0.3608]
[1731715558107,0.0948,91180.0,91163.0,0.3608]
[1731715558299,0.0948,91180.0,91179.0,0.3608]
[1731715560515,0.10291571,91180.0,91163.0,0.3659]
[1731715560805,0.11425057,91177.0,91163.0,0.3608]
[1731715560996,0.00811571,91176.0,91172.0,0.3608]
[1731715561798,0.0948,91175.0,91172.0,0.3608]
[1731715562006,0.00811571,91174.0,91172.0,0.3608]
[1731715562206,0.0948,91175.0,91172.0,0.3608]
[1731715562422,0.00807785,91174.0,91172.0,0.3608]
[1731715564099,0.00807785,91174.0,91172.0,0.55763624]
[1731715564512,0.00807785,91174.0,91173.0,0.19683624]
[1731715564710,0.00807785,91174.0,91173.0,0.19687482]
[1731715566411,0.00807785,91174.0,91172.0,0.55767482]
[1731715567741,0.00807785,91174.0,91172.0,0.3608]
[1731715570130,0.0948,91175.0,91172.0,0.3608]
[1731715570332,0.00817082,91173.0,91172.0,0.3608]
[1731715571738,0.00817082,91173.0,91172.0,0.55767482]
[1731715573046,0.00817082,91173.0,91172.0,0.3608]
[1731715577129,0.0081291,91173.0,91172.0,0.3608]
[1731715579419,0.0926,91181.0,91172.0,0.68984]
[1731715579620,0.0926,91181.0,91180.0,0.3608]
[1731715579823,0.10069227,91181.0,91180.0,0.3608]
[1731715580018,0.0926,91181.0,91180.0,0.3608]
[1731715582227,0.09424613,91186.0,91180.0,0.3608]
[1731715582723,0.00164613,91186.0,91185.0,0.11425057]
[1731715582918,0.00164613,91186.0,91185.0,0.48106246]
[1731715583824,0.0926,91198.0,91185.0,0.873222]
[1731715584014,0.0926,91198.0,91197.0,0.3608]
[1731715586419,0.0926,91211.0,91197.0,0.7216]
[1731715586625,0.13060236,91222.0,91210.0,0.3608]
[1731715586828,0.10054669,91221.0,91210.0,0.3608]
[1731715587021,0.00794669,91220.0,91210.0,0.3608]
[1731715587825,0.0926,91219.0,91210.0,0.3608]
[1731715588023,0.00794669,91218.0,91210.0,0.3608]
[1731715588828,0.10054669,91217.0,91210.0,0.3608]
[1731715589126,0.0926,91217.0,91210.0,0.3608]
[1731715592444,0.0926,91217.0,91210.0,0.39564991]
[1731715592933,0.0926,91221.0,91210.0,0.50990048]
[1731715593123,0.0926,91223.0,91220.0,0.3608]
[1731715593323,0.00213503,91227.0,91220.0,0.3608]
[1731715593527,0.0926,91226.0,91220.0,0.3608]
[1731715593735,0.0926,91226.0,91220.0,0.3999]
[1731715594535,0.00213503,91227.0,91220.0,0.3999]
[1731715594736,0.09469503,91227.0,91220.0,0.3999]
[1731715596336,0.00213503,91227.0,91220.0,0.3999]
[1731715597332,0.00213503,91227.0,91220.0,0.59660593]
[1731715597842,0.11425057,91257.0,91226.0,0.11425057]
[1731715598029,0.3608,91265.0,91247.0,0.3608]
[1731715598030,0.00794447,91253.0,91247.0,0.3608]
[1731715598230,0.09256,91261.0,91247.0,0.3608]
[1731715598435,0.00794353,91260.0,91247.0,0.3608]
[1731715598737,0.09256,91261.0,91247.0,0.3608]
[1731715598940,0.00795828,91260.0,91247.0,0.3608]
[1731715599139,0.09256,91261.0,91255.0,0.3608]
[1731715599633,0.20681057,91261.0,91255.0,0.3608]
[1731715600632,0.00805535,91260.0,91255.0,0.3608]
[1731715600938,0.00805535,91259.0,91244.0,0.0051]
[1731715601140,0.11425057,91251.0,91246.0,0.3608]
[1731715602139,0.00807861,91250.0,91246.0,0.3608]
[1731715602336,0.10063861,91249.0,91246.0,0.3608]
[1731715602536,0.00807861,91248.0,91246.0,0.3608]
[1731715603337,0.09256,91249.0,91246.0,0.3608]
[1731715604241,0.00811339,91248.0,91238.0,0.3608]
[1731715604439,0.09256,91249.0,91238.0,0.3608]
[1731715604440,0.00811291,91247.0,91238.0,0.3608]
[1731715604643,0.11425057,91243.0,91238.0,0.3608]
[1731715605041,0.09128,91242.0,91238.0,0.3608]
[1731715606347,0.00811231,91241.0,91238.0,0.3608]
[1731715606549,0.09128,91242.0,91238.0,0.3608]
[1731715606746,0.00812343,91240.0,91238.0,0.3608]
[1731715606937,0.09128,91242.0,91238.0,0.3608]
[1731715607458,0.0081287,91241.0,91238.0,0.3608]
[1731715607637,0.09128,91242.0,91238.0,0.3608]
[1731715608045,0.13060236,91264.0,91241.0,0.3608]
[1731715608236,0.2604288,91292.0,91239.0,0.3288]
[1731715608237,0.16287627,91297.0,91274.0,0.11425057]
[1731715608443,0.03472801,91313.0,91292.0,0.3608]
[1731715608850,0.3608,91318.0,91297.0,0.11425057]
[1731715609052,0.09128,91301.0,91299.0,0.3608]
[1731715609241,0.0379,91322.0,91299.0,0.3608]
[1731715609436,0.09128,91306.0,91299.0,0.3608]
[1731715609642,0.0379,91322.0,91299.0,0.3608]
[1731715609849,0.0379,91322.0,91299.0,0.6894]
[1731715610048,0.09128,91321.0,91318.0,0.3608]
[1731715610244,0.00164318,91360.0,91320.0,0.3608]
[1731715610447,0.17238,91359.0,91357.0,0.11425057]
[1731715610955,0.32836,91358.0,91357.0,0.11425057]
[1731715611246,0.0811,91359.0,91357.0,0.11425057]
[1731715611649,0.0811,91359.0,91344.0,0.3659]
[1731715611650,0.32836,91358.0,91344.0,0.3659]
[1731715611846,0.0811,91359.0,91344.0,0.3608]
[1731715612039,0.09128,91357.0,91344.0,0.3608]
[1731715612640,0.0811,91359.0,91344.0,0.3608]
[1731715612952,0.53653165,91345.0,91322.0,0.3608]
[1731715613248,0.49916,91344.0,91322.0,0.3608]
[1731715613445,0.79916,91344.0,91322.0,0.3608]
[1731715613648,0.79916,91344.0,91287.0,0.19587833]
[1731715613649,0.3608,91323.0,91289.0,0.3608]
[1731715613842,0.3608,91323.0,91283.0,0.02192861]
[1731715613843,0.3608,91302.0,91283.0,0.02192861]
[1731715614043,0.3608,91302.0,91280.0,0.3608]
[1731715614044,0.09124,91301.0,91288.0,0.3608]
[1731715614253,0.09124,91300.0,91288.0,0.3608]
[1731715614557,0.09124,91299.0,91288.0,0.3608]
[1731715620062,8.229e-05,91322.0,91298.0,0.3608]
[1731715620360,0.00793034,91321.0,91315.0,0.3608]
[1731715620556,8.229e-05,91322.0,91315.0,0.3608]
[1731715620557,0.09917034,91320.0,91315.0,0.3608]
[1731715620950,0.00793034,91319.0,91315.0,0.3608]
[1731715621156,0.17573165,91318.0,91315.0,0.3608]
[1731715621356,0.00793034,91317.0,91298.0,0.3608]
[1731715621557,0.09124,91316.0,91298.0,0.3608]
[1731715621759,0.00793034,91315.0,91298.0,0.3608]
[1731715621960,0.09124,91316.0,91298.0,0.3608]
[1731715622165,0.00797425,91315.0,91298.0,0.3608]
[1731715622362,0.09921425,91314.0,91298.0,0.3608]
[1731715622656,0.00797425,91313.0,91298.0,0.3608]
[1731715622860,0.09124,91314.0,91298.0,0.3608]
[1731715622861,0.09124,91314.0,91306.0,0.3608]
[1731715623059,8.229e-05,91322.0,91306.0,0.3608]
[1731715623261,8.229e-05,91322.0,91314.0,0.3608]
[1731715623262,0.09920186,91321.0,91314.0,0.3608]
[1731715623467,0.09124,91321.0,91314.0,0.3608]
[1731715624349,0.00164378,91329.0,91314.0,0.3608]
[1731715624551,0.09124,91351.0,91328.0,0.3608]
[1731715624752,0.3608,91341.0,91328.0,0.3608]
[1731715624969,0.00805754,91340.0,91320.0,0.3608]
[1731715625155,0.3608,91341.0,91320.0,0.3608]
[1731715625156,0.00805754,91339.0,91320.0,0.3608]
[1731715625462,0.00811551,91338.0,91320.0,0.3608]
[1731715625765,0.09684,91337.0,91320.0,0.3608]
[1731715626156,0.0079898,91336.0,91320.0,0.3608]
[1731715626458,0.0079898,91335.0,91320.0,0.3608]
[1731715626661,0.0079898,91334.0,91328.0,0.3608]
[1731715626868,5.797e-05,91338.0,91333.0,0.3608]
[1731715627556,0.09684,91351.0,91334.0,0.038]
[1731715627754,0.09684,91351.0,91346.0,0.3608]
[1731715628365,0.00058,91359.0,91348.0,0.3608]
[1731715628563,0.00058,91359.0,91356.0,0.3608]
[1731715628866,0.10484789,91358.0,91356.0,0.3608]
[1731715629078,0.00800789,91357.0,91356.0,0.3608]
[1731715629255,0.00800789,91357.0,91343.0,0.0051]
[1731715629256,0.33640789,91357.0,91347.0,0.3608]
[1731715629565,0.00800789,91356.0,91347.0,0.3608]
[1731715629870,0.00800789,91355.0,91347.0,0.3608]
[1731715630065,0.09684,91358.0,91347.0,0.3608]
[1731715630566,0.00803324,91357.0,91347.0,0.3608]
[1731715630865,0.09684,91358.0,91347.0,0.3608]
[1731715631065,0.00058,91359.0,91347.0,0.3608]
[1731715631269,0.09684,91358.0,91347.0,0.3608]
[1731715631456,0.00058,91359.0,91356.0,0.3608]
[1731715631861,0.09684,91358.0,91356.0,0.3608]
[1731715636371,0.09684,91358.0,91347.0,0.3608]
[1731715636566,0.00807776,91357.0,91347.0,0.3608]
[1731715636864,0.01317021,91356.0,91347.0,0.3608]
[1731715637162,0.01317021,91355.0,91347.0,0.3608]
[1731715637462,0.00807776,91354.0,91347.0,0.3608]
[1731715637658,0.02124797,91353.0,91347.0,0.3608]
[1731715637859,0.02124797,91352.0,91347.0,0.3608]
[1731715638062,0.02124797,91351.0,91347.0,0.3608]
[1731715638266,0.02124797,91350.0,91347.0,0.3608]
[1731715638466,0.02124797,91349.0,91347.0,0.3608]
[1731715638664,0.02124797,91348.0,91347.0,0.3608]
[1731715638865,0.01323356,91348.0,91347.0,0.3608]
[1731715639066,0.02150453,91357.0,91347.0,0.3608]
[1731715639263,0.02150459,91356.0,91353.0,0.17573165]
[1731715639564,0.0968,91360.0,91355.0,0.3608]
[1731715639871,0.3608,91386.0,91355.0,0.3608]
[1731715639872,0.02150895,91359.0,91355.0,0.3608]
[1731715640058,0.02150895,91358.0,91355.0,0.3608]
[1731715640259,0.0438,91373.0,91355.0,0.3608]
[1731715640260,0.02150895,91357.0,91355.0,0.3608]
[1731715640459,0.02150895,91356.0,91355.0,0.3608]
[1731715640764,0.0968,91365.0,91355.0,0.3608]
[1731715640765,0.02150895,91364.0,91355.0,0.3608]
[1731715641066,0.02150895,91363.0,91355.0,0.3608]
[1731715641267,0.02150895,91362.0,91355.0,0.3608]
[1731715641457,0.0968,91365.0,91355.0,0.3608]
[1731715641458,0.00827267,91361.0,91355.0,0.3608]
[1731715641665,0.02150895,91360.0,91355.0,0.3608]
[1731715641858,0.02150895,91359.0,91355.0,0.3608]
[1731715642062,0.02150895,91358.0,91355.0,0.3608]
[1731715642373,0.02150895,91357.0,91355.0,0.3608]
[1731715642568,0.02150895,91356.0,91355.0,0.3608]
[1731715643067,0.02150895,91364.0,91355.0,0.3608]
[1731715643258,0.02150895,91363.0,91355.0,0.3608]
[1731715643459,0.11830895,91362.0,91355.0,0.3608]
[1731715643673,0.11830895,91361.0,91355.0,0.3608]
[1731715643974,0.11830895,91360.0,91355.0,0.3608]
[1731715644176,0.11830895,91359.0,91355.0,0.3608]
[1731715644362,0.0968,91358.0,91355.0,0.3608]
[1731715644664,0.0968,91357.0,91355.0,0.3608]
[1731715644870,0.0968,91356.0,91355.0,0.3608]
[1731715646976,0.11894108,91356.0,91355.0,0.3608]
[1731715648667,0.11894108,91356.0,91346.0,0.3608]
[1731715648859,0.1139726,91352.0,91346.0,0.3608]
[1731715649059,0.02214108,91355.0,91346.0,0.3608]
[1731715649263,0.0968,91356.0,91346.0,0.33615843]
[1731715649264,0.01362528,91351.0,91346.0,0.33615843]
[1731715649475,0.02214108,91350.0,91346.0,0.33615843]
[1731715649667,0.02214108,91349.0,91346.0,0.33615843]
[1731715649865,0.02214108,91348.0,91346.0,0.33615843]
[1731715650066,0.02214108,91347.0,91346.0,0.33615843]
[1731715650870,0.0085158,91347.0,91346.0,0.33615843]
[1731715652364,0.1053158,91347.0,91346.0,0.33615843]
[1731715652772,0.1053158,91347.0,91346.0,0.53203676]
[1731715653075,0.1053158,91347.0,91346.0,0.33615843]
[1731715654577,0.0085158,91347.0,91346.0,0.33615843]
[1731715654876,0.1049958,91347.0,91346.0,0.33615843]
[1731715655267,0.1049958,91347.0,91346.0,0.37093633]
[1731715655473,0.10445394,91347.0,91346.0,0.33615843]
[1731715656273,0.10445394,91347.0,91346.0,1.04943493]
[1731715656471,0.10445394,91347.0,91346.0,0.33615843]
[1731715656768,0.10443609,91347.0,91346.0,0.59852837]
[1731715657175,0.10443609,91347.0,91346.0,0.33615843]
[1731715657376,0.10443609,91347.0,91346.0,0.59856218]
[1731715658172,0.10443609,91347.0,91346.0,0.33615843]
[1731715658771,0.10443609,91347.0,91345.0,0.19689574]
[1731715658976,0.04615609,91346.0,91345.0,0.00010486]
[1731715659171,0.14263609,91346.0,91345.0,0.00010486]